bitfinex/quotes_ETHUSD_20220212
["timestamp","ask_amount","ask_price","bid_price","bid_amount"]
[1644688355062,0.6573444,2937.9,2937.1,3.79314]
[1644688355260,0.01046449,2937.6,2937.4,0.01046553]
[1644688356068,0.6073444,2937.9,2937.1,2.091]
[1644688356267,1.4491269,2937.8,2937.1,1.15116]
[1644688356468,0.01046449,2937.6,2937.4,0.01046553]
[1644688357367,0.82911433,2937.8,2937.1,1.94216]
[1644688357668,0.01046449,2937.6,2937.4,0.01046553]
[1644688358307,0.98176449,2938.2,2937.4,0.01046553]
[1644688358508,1.44903307,2938.1,2937.1,1.94216]
[1644688358911,0.01046449,2937.6,2937.4,0.01046553]
[1644688359713,0.01046449,2937.6,2937.2,2.70207]
[1644688359714,0.7027948,2938.0,2937.2,2.70207]
[1644688359910,1.44906267,2937.9,2937.2,1.0]
[1644688360112,0.00576296,2937.7,2937.2,1.0]
[1644688360310,0.00576296,2937.7,2937.1,1.94203]
[1644688360917,0.7027948,2938.0,2937.1,1.94203]
[1644688361115,1.44905315,2937.9,2937.1,1.94203]
[1644688361315,0.01046394,2937.7,2937.3,0.01046569]
[1644688362154,0.7027948,2938.0,2937.1,1.94203]
[1644688362358,0.01046413,2937.7,2937.4,0.01046553]
[1644688363355,0.7027948,2938.0,2937.1,1.94203]
[1644688363556,0.01046423,2937.7,2937.4,0.01046545]
[1644688364556,0.7027948,2938.0,2937.1,1.94203]
[1644688364757,0.01046423,2937.7,2937.4,0.01046545]
[1644688365808,0.7027948,2938.0,2937.1,1.94203]
[1644688366009,0.01046423,2937.7,2937.4,0.01046545]
[1644688367009,0.1701,2938.1,2937.2,3.30371157]
[1644688367209,0.81166449,2938.2,2937.5,0.85102]
[1644688367210,0.01046423,2937.7,2937.5,0.85102]
[1644688367408,0.01046423,2937.7,2937.6,0.491]
[1644688368209,0.81166449,2938.2,2937.6,0.491]
[1644688368409,0.01046425,2937.8,2937.6,0.48905237]
[1644688369484,0.81166449,2938.2,2937.6,0.48905237]
[1644688369684,0.01046417,2937.8,2937.6,0.48905237]
[1644688370485,0.81166449,2938.2,2937.6,0.48905237]
[1644688370887,0.01046417,2937.8,2937.6,0.48905237]
[1644688371089,0.01046417,2937.8,2937.6,0.65915237]
[1644688371291,0.01046417,2937.8,2937.6,1.65915237]
[1644688371688,0.81166449,2938.2,2937.6,0.65915237]
[1644688371889,0.81166449,2938.2,2937.6,1.65915237]
[1644688372087,0.00576096,2937.8,2937.6,0.65915237]
[1644688372489,0.81166449,2938.2,2937.7,6.95221]
[1644688372689,0.81166449,2938.2,2937.8,0.491]
[1644688372891,0.81166449,2938.2,2937.8,1.391]
[1644688373115,0.81166449,2938.2,2937.9,0.85085]
[1644688373307,0.81166449,2938.2,2938.0,0.491]
[1644688373907,0.81166449,2938.2,2938.0,0.791]
[1644688374507,0.81741979,2938.2,2938.0,0.791]
[1644688375310,0.81166449,2938.2,2938.0,0.791]
[1644688375714,0.81741979,2938.2,2938.0,0.491]
[1644688376415,1.5454405,2937.7,2937.1,0.491]
[1644688376613,1.5454405,2937.7,2937.1,3.5]
[1644688376856,1.5454405,2937.7,2937.5,0.01047189]
[1644688377456,2.38723263,2937.7,2937.5,0.01047189]
[1644688377856,1.5454405,2937.7,2936.9,0.0301355]
[1644688378058,1.5454405,2937.7,2937.5,0.01047103]
[1644688379055,1.5454405,2937.7,2937.1,0.791]
[1644688379256,2.23486528,2937.7,2937.5,0.01047103]
[1644688379456,1.5454405,2937.7,2937.5,0.01047103]
[1644688380255,1.5454405,2937.7,2937.1,2.091]
[1644688380457,1.5454405,2937.7,2937.5,0.01047103]
[1644688380716,2.39126726,2937.7,2937.5,0.01047103]
[1644688380916,1.5454405,2937.7,2937.5,0.01047103]
[1644688381118,1.5454405,2937.7,2937.6,0.66309129]
[1644688381521,1.5454405,2937.7,2937.6,4.01539308]
[1644688381818,1.5454405,2937.7,2937.6,5.01539308]
[1644688382021,1.5454405,2937.7,2937.6,4.84330179]
[1644688382219,1.5454405,2937.7,2937.6,4.79018944]
[1644688382420,1.5454405,2937.7,2937.6,1.48710338]
[1644688384023,1.57495574,2937.7,2937.6,1.48710338]
[1644688384956,1.57495574,2937.7,2937.6,4.82594903]
[1644688385764,1.57495574,2937.7,2937.6,1.48710338]
[1644688388209,1.57495574,2937.7,2937.6,4.8086776]
[1644688388419,1.57495574,2937.7,2937.6,1.48710338]
[1644688388813,1.57495574,2937.7,2937.6,4.80892052]
[1644688389412,1.57495574,2937.7,2937.6,4.81299059]
[1644688390815,1.57495574,2937.7,2937.6,1.48533137]
[1644688391217,1.57495574,2937.7,2937.6,4.79041543]
[1644688392261,1.57495574,2937.7,2937.6,1.48533137]
[1644688393462,1.57495574,2937.7,2937.6,4.85815454]
[1644688394063,1.5454405,2937.7,2937.6,4.85868312]
[1644688394261,1.5454405,2937.7,2937.6,1.48585995]
[1644688399554,1.5454405,2937.7,2937.6,1.4849326]
[1644688399957,1.5454405,2937.7,2937.6,4.79140924]
[1644688400555,1.5454405,2937.7,2937.6,1.4849326]
[1644688400759,1.5454405,2937.7,2937.6,0.4849326]
[1644688400959,1.5454405,2937.7,2937.6,0.00174502]
[1644688400960,2.99427348,2937.7,2937.6,0.00174502]
[1644688401959,3.8344747,2937.7,2937.6,0.00174502]
[1644688404207,3.834489,2937.7,2937.6,0.00174502]
[1644688405013,3.784489,2937.7,2937.6,0.00174502]
[1644688413817,7.1008,2937.6,2936.9,0.0301355]
[1644688414015,5.0,2937.4,2935.9,5.2066]
[1644688414216,1.44884728,2937.5,2935.9,1.2156]
[1644688414217,5.0,2936.9,2935.9,1.2156]
[1644688414463,5.7697,2936.9,2935.6,0.386317]
[1644688414661,1.44927021,2936.8,2935.6,0.386317]
[1644688414859,1.44927021,2936.8,2935.6,0.136317]
[1644688414860,0.1701,2936.7,2935.6,0.136317]
[1644688415060,0.80735066,2935.8,2935.6,0.136317]
[1644688415260,0.1701,2936.7,2935.6,0.136317]
[1644688415459,1.44939586,2936.6,2936.1,0.00968338]
[1644688415662,0.1701,2936.5,2936.1,0.00968338]
[1644688416063,0.1701,2936.7,2936.1,0.00968338]
[1644688416263,0.82492593,2936.2,2935.6,0.136317]
[1644688416863,0.82492593,2936.2,2935.6,0.987917]
[1644688417066,0.82492593,2936.2,2935.6,1.587917]
[1644688417264,0.82492593,2936.2,2935.6,0.436317]
[1644688417465,0.82492593,2936.2,2935.6,0.736317]
[1644688417666,3.87787522,2936.7,2935.6,0.436317]
[1644688417866,3.54042578,2936.7,2935.8,0.00989271]
[1644688418117,0.1703,2936.7,2935.8,0.00989271]
[1644688418307,3.55774343,2936.7,2935.8,0.00989271]
[1644688418508,1.44939132,2936.6,2935.8,0.00989271]
[1644688418710,0.74098889,2936.4,2935.7,0.1701]
[1644688418910,0.74098889,2936.4,2936.1,0.00989215]
[1644688419314,0.74098889,2936.4,2936.3,0.00161921]
[1644688423560,0.69098889,2936.4,2936.3,0.00161921]
[1644688424059,0.69098889,2936.4,2936.3,0.00088644]
[1644688429118,0.69098889,2936.4,2936.2,0.01237576]
[1644688429566,0.69098889,2936.4,2936.2,0.00250744]
[1644688429763,0.69098889,2936.4,2936.2,0.01237576]
[1644688430767,0.69098889,2936.4,2936.2,0.00250744]
[1644688432169,0.69098889,2936.4,2936.2,0.01237018]
[1644688432873,1.1604,2936.8,2936.2,0.01237018]
[1644688433129,1.1604,2936.8,2936.3,0.491]
[1644688433317,12.43556443,2937.2,2936.3,0.491]
[1644688433517,12.43556443,2937.2,2936.3,0.791]
[1644688433717,12.1893,2937.2,2936.3,1.091]
[1644688433917,12.1893,2937.2,2936.4,0.8513]
[1644688434117,5.0352,2937.2,2936.5,0.491]
[1644688434317,3.8891,2937.2,2936.5,0.491]
[1644688434716,5.51691785,2937.6,2936.5,0.491]
[1644688434717,8.66201785,2937.6,2936.6,0.00995712]
[1644688434917,5.16201785,2937.6,2936.7,0.491]
[1644688435518,2.01691785,2937.6,2936.7,0.491]
[1644688436872,2.18701785,2937.6,2937.0,0.0047202]
[1644688437772,2.18701785,2937.6,2936.7,0.491]
[1644688437773,2.18701785,2937.6,2936.8,3.32657404]
[1644688437976,2.01691785,2937.6,2936.8,0.85125]
[1644688438175,2.01691785,2937.6,2937.2,0.01011361]
[1644688438777,0.87581785,2937.6,2937.2,0.01011361]
[1644688439178,0.87581785,2937.6,2937.1,0.491]
[1644688439379,0.87581785,2937.6,2937.3,0.01011345]
[1644688440381,0.87581785,2937.6,2936.9,0.49276426]
[1644688440624,1.04591785,2937.6,2937.3,0.01011337]
[1644688441419,1.04591785,2937.6,2936.9,0.49276426]
[1644688441820,1.04591785,2937.6,2937.3,0.00984734]
[1644688442017,0.87581785,2937.6,2937.3,0.00984734]
[1644688442817,0.87581785,2937.6,2936.9,0.49276426]
[1644688443021,0.87581785,2937.6,2937.3,0.00984734]
[1644688443424,1.44909233,2937.5,2937.3,0.00984734]
[1644688443624,0.87581785,2937.6,2937.3,0.00984734]
[1644688443824,1.44909527,2937.5,2937.2,0.00080308]
[1644688444225,1.44909527,2937.5,2937.3,0.00984734]
[1644688444463,0.87581785,2937.6,2937.3,0.00984734]
[1644688445165,0.87581785,2937.6,2937.2,0.00080308]
[1644688445463,1.44905642,2937.5,2937.3,0.00986519]
[1644688446266,1.44905642,2937.5,2937.2,0.00080308]
[1644688446666,1.44905642,2937.5,2937.3,0.00986527]
[1644688447567,1.44905642,2937.5,2937.2,0.00080308]
[1644688447768,1.44905642,2937.5,2937.3,0.00986527]
[1644688447968,1.39823875,2937.5,2937.3,0.00986527]
[1644688448613,1.39823875,2937.5,2937.2,0.00080308]
[1644688448812,0.87581785,2937.6,2937.4,0.00151739]
[1644688450117,0.87581785,2937.6,2937.4,0.0113813]
[1644688451122,0.87581785,2937.6,2937.4,0.00151739]
[1644688451319,0.87581785,2937.6,2937.4,0.0113813]
[1644688452461,0.87581785,2937.6,2937.4,0.00151739]
[1644688452664,0.00986199,2937.9,2937.5,7.9811355]
[1644688452867,0.00986199,2937.9,2937.8,6.142]
[1644688453064,0.00986199,2937.9,2937.8,6.633]
[1644688453262,0.81166449,2938.2,2937.9,6.45]
[1644688453466,0.81166449,2938.2,2938.1,6.142]
[1644688453863,0.81166449,2938.2,2938.1,8.233]
[1644688454062,0.81166449,2938.2,2938.1,8.40509129]
[1644688455064,0.81166449,2938.2,2938.1,11.95075934]
[1644688456419,0.81166449,2938.2,2938.1,12.12085934]
[1644688458420,0.81166449,2938.2,2938.1,11.95075934]
[1644688458819,0.81166449,2938.2,2938.1,11.95222592]
[1644688460261,0.81166449,2938.2,2938.1,8.40655787]
[1644688460462,0.81166449,2938.2,2938.1,11.71891678]
[1644688462269,0.81166449,2938.2,2938.1,8.40655787]
[1644688462469,0.81166449,2938.2,2938.1,11.70533047]
[1644688464716,0.01045466,2938.3,2938.2,2.45]
[1644688464917,0.01045466,2938.3,2938.2,13.73887295]
[1644688465517,4.1638,2939.2,2938.2,13.91096424]
[1644688465723,0.04181173,2938.8,2938.5,0.85078]
[1644688465921,0.04181173,2938.8,2938.6,0.491]
[1644688466865,0.84148186,2938.9,2938.6,0.491]
[1644688467063,0.01045377,2938.8,2938.6,0.491]
[1644688467264,0.01045377,2938.8,2938.7,3.30378096]
[1644688467464,0.01045377,2938.8,2938.7,3.79478096]
[1644688467865,0.04180881,2939.3,2938.7,3.79478096]
[1644688468064,0.1701,2939.6,2938.7,3.79478096]
[1644688468367,0.04180849,2939.3,2938.9,0.85062]
[1644688468564,0.04180849,2939.3,2939.0,3.80127508]
[1644688468766,0.04180849,2939.3,2939.0,0.491]
[1644688469167,0.76448966,2939.6,2939.0,3.7846806]
[1644688469366,0.01045305,2939.3,2939.0,0.491]
[1644688469772,0.01045305,2939.3,2939.0,3.87070168]
[1644688469972,0.01045305,2939.3,2939.0,0.491]
[1644688470373,0.76448966,2939.6,2939.0,3.83141242]
[1644688470623,0.01045305,2939.3,2939.0,0.491]
[1644688471617,0.93458966,2939.6,2939.0,0.491]
[1644688471821,0.01045305,2939.3,2939.0,0.491]
[1644688472819,0.83588602,2939.1,2939.0,0.491]
[1644688473819,0.01045305,2939.3,2939.0,0.491]
[1644688474019,0.1701,2939.6,2939.0,0.491]
[1644688474370,0.01045321,2939.2,2939.0,0.491]
[1644688474768,0.00225977,2939.6,2939.0,0.491]
[1644688474968,0.72760909,2939.4,2939.0,0.491]
[1644688475268,0.17,2939.8,2939.0,3.75748264]
[1644688475468,4.8357,2939.9,2939.0,3.75748264]
[1644688475469,0.01045313,2939.2,2939.1,1.85057]
[1644688475672,0.04180624,2939.7,2939.1,6.36935335]
[1644688476071,0.04180624,2939.7,2939.2,0.17209129]
[1644688476273,0.87422195,2940.2,2939.3,6.633]
[1644688476471,1.44790552,2940.1,2939.5,1.70054]
[1644688476672,1.44790552,2940.1,2939.6,0.491]
[1644688476873,1.173,2940.3,2939.6,0.791]
[1644688477070,1.44788408,2940.2,2939.6,1.091]
[1644688477271,1.44788408,2940.1,2939.6,1.091]
[1644688477471,0.17,2940.5,2939.6,1.091]
[1644688477670,1.44789137,2940.4,2939.6,1.091]
[1644688477872,1.44789137,2940.4,2939.7,0.17]
[1644688478124,1.44789137,2940.4,2939.9,0.85033]
[1644688478313,1.44789137,2940.4,2940.0,4.24308825]
[1644688478513,1.44789137,2940.4,2940.1,1.70038]
[1644688478713,0.17,2940.5,2940.2,0.491]
[1644688479114,0.01045143,2940.3,2940.2,0.491]
[1644688479918,0.17,2940.5,2940.2,0.491]
[1644688480218,0.01045127,2940.4,2940.3,0.85018]
[1644688480418,0.01045127,2940.4,2940.3,1.34118]
[1644688481219,0.17,2940.5,2940.3,1.34118]
[1644688481520,0.18045111,2940.5,2940.4,6.442]
[1644688481866,0.18045111,2940.5,2940.4,6.933]
[1644688482073,0.04179816,2940.9,2940.4,6.933]
[1644688482074,0.04179816,2940.9,2940.4,11.97138882]
[1644688482268,0.04179816,2940.9,2940.5,0.1698]
[1644688482468,0.00215472,2941.0,2940.6,2.19097]
[1644688482668,0.04395223,2941.0,2940.6,2.19097]
[1644688482868,0.04395223,2941.0,2940.6,2.49097]
[1644688483471,0.04395223,2941.0,2940.6,8.63297]
[1644688483671,0.00215472,2941.0,2940.6,8.63297]
[1644688483872,0.01045608,2940.9,2940.6,8.63297]
[1644688484775,0.00215472,2941.0,2940.6,8.63297]
[1644688484977,0.01045616,2940.9,2940.6,8.63297]
[1644688485178,0.01045616,2940.9,2940.7,2.02207129]
[1644688485379,0.01045616,2940.9,2940.8,0.661]
[1644688485643,0.01045616,2940.9,2940.8,6.803]
[1644688485842,0.00215472,2941.0,2940.9,5.45]
[1644688486039,0.00215472,2941.0,2940.9,5.62]
[1644688486237,0.00215472,2941.0,2940.9,8.09719204]
[1644688486438,0.02073838,2941.6,2941.1,0.84986]
[1644688486639,0.02073838,2941.6,2941.2,0.491]
[1644688487040,0.02073838,2941.6,2941.2,0.791]
[1644688487342,0.01045433,2941.5,2941.2,0.791]
[1644688488238,0.01045433,2941.5,2941.3,0.3]
[1644688488439,0.02073838,2941.6,2941.4,0.491]
[1644688488641,0.02073838,2941.6,2941.4,0.791]
[1644688488841,0.01045441,2941.5,2941.4,0.791]
[1644688489671,0.02073838,2941.6,2941.4,1.64085]
[1644688489872,0.03119263,2941.6,2941.4,2.64085]
[1644688490269,0.03119263,2941.6,2941.4,0.491]
[1644688490471,0.03119263,2941.6,2941.5,3.0]
[1644688491269,0.03119254,2941.6,2941.5,3.0]
[1644688491474,0.82966138,2941.6,2941.5,3.0]
[1644688491671,4.38846514,2941.6,2941.5,3.0]
[1644688491874,7.0942,2941.5,2940.8,0.49246522]
[1644688492072,10.15717576,2941.4,2940.8,0.00146522]
[1644688492274,5.0,2941.0,2940.8,0.00146522]
[1644688492476,3.65807901,2940.9,2940.8,0.00146522]
[1644688492675,3.48807901,2940.9,2940.8,0.00146522]
[1644688493319,5.6726167,2941.0,2940.8,0.00146522]
[1644688493724,5.68244143,2941.0,2940.8,0.00146522]
[1644688493924,5.68244143,2941.0,2940.6,0.00982638]
[1644688494124,3.39794117,2940.9,2940.6,0.00982638]
[1644688494326,3.39794117,2940.9,2940.6,2.638e-05]
[1644688494327,3.40264862,2940.9,2940.6,2.638e-05]
[1644688494524,3.40264862,2940.9,2940.5,0.00146399]
[1644688494525,1.44766878,2940.8,2940.5,0.00146399]
[1644688494726,5.0,2940.6,2940.5,0.00146399]
[1644688494926,1.61766878,2940.6,2940.5,0.00146399]
[1644688495128,0.17,2940.6,2940.5,0.00146399]
[1644688496126,3.55410819,2940.9,2940.5,0.00146399]
[1644688496325,1.44763528,2940.8,2939.7,0.37146399]
[1644688496525,3.60022839,2940.7,2939.7,0.17]
[1644688496727,1.44763528,2940.6,2939.7,0.17]
[1644688497165,0.89452236,2940.3,2939.7,0.17]
[1644688498373,0.89452236,2940.3,2939.9,0.01045765]
[1644688498671,0.89452236,2940.3,2939.7,0.17]
[1644688498672,0.0209153,2939.8,2939.7,0.17]
[1644688499969,0.0209153,2939.8,2939.4,0.17]
[1644688500672,1.8465538,2939.8,2939.4,0.17]
[1644688500856,1.8465538,2939.8,2938.8,0.17]
[1644688501053,1.8465538,2939.8,2938.6,0.1701]
[1644688501658,1.8465538,2939.8,2938.9,0.85064]
[1644688502255,1.8465538,2939.8,2938.9,1.45064]
[1644688503058,1.8465538,2939.8,2939.0,0.1701]
[1644688503457,1.8465538,2939.8,2939.2,0.01045871]
[1644688503857,5.23678677,2939.8,2939.6,0.00218406]
[1644688504057,5.20483248,2939.8,2939.6,0.00218406]
[1644688504257,3.37872409,2939.7,2939.6,0.00218406]
[1644688504672,3.37872409,2939.7,2939.6,0.0126422]
[1644688504871,0.7887538,2939.8,2939.6,0.0126422]
[1644688505072,3.38037109,2939.7,2939.6,0.0126422]
[1644688505273,0.7887538,2939.8,2939.6,0.0126422]
[1644688505679,0.7887538,2939.8,2939.6,0.00218406]
[1644688506676,0.7387538,2939.8,2939.6,0.00218406]
[1644688507075,0.7387538,2939.8,2939.6,0.0126422]
[1644688507880,0.7387538,2939.8,2939.6,0.00218406]
[1644688508328,0.7387538,2939.8,2939.6,0.0126422]
[1644688508925,0.7387538,2939.8,2939.6,0.01180046]
[1644688509129,0.7387538,2939.8,2939.6,0.00134232]
[1644688509325,0.7387538,2939.8,2939.6,0.01180046]
[1644688510334,0.7387538,2939.8,2939.6,0.00134232]
[1644688510533,3.38820078,2939.7,2939.6,0.01180046]
[1644688510733,5.09630206,2939.7,2939.6,0.01180046]
[1644688510939,0.00119954,2939.6,2938.4,0.17]
[1644688511134,1.44927422,2939.6,2938.4,0.17]
[1644688511335,3.66129893,2939.5,2938.4,0.17]
[1644688511534,1.44927422,2939.6,2938.4,0.17]
[1644688511535,0.00119954,2939.6,2938.4,0.17]
[1644688512167,0.86085765,2939.2,2938.4,0.17]
[1644688513169,0.00119954,2939.6,2938.4,1.87141]
[1644688513369,4.82800099,2939.6,2938.4,1.87141]
[1644688513573,0.00119954,2939.6,2938.4,2.47141]
[1644688513772,3.37703231,2939.6,2938.4,2.47141]
[1644688513972,3.37703231,2939.6,2938.4,3.47141]
[1644688514373,0.76525836,2939.1,2938.4,3.47141]
[1644688514976,3.46306146,2939.0,2938.4,0.17]
[1644688515174,0.76525836,2939.1,2938.4,0.17]
[1644688515376,0.76525836,2939.1,2938.6,0.01045968]
[1644688516225,3.36280091,2939.0,2938.6,0.01045968]
[1644688516421,3.36280091,2939.0,2938.0,1.091]
[1644688516422,3.37099542,2939.0,2938.2,0.85084]
[1644688516621,0.76525836,2939.1,2938.7,0.01045952]
[1644688517621,0.76525836,2939.1,2938.3,0.1701]
[1644688517821,0.76525836,2939.1,2938.8,0.01045944]
[1644688518424,5.76525836,2939.1,2938.8,0.01045944]
[1644688518624,0.1701,2939.0,2938.8,0.01045944]
[1644688518826,0.1701,2939.0,2937.8,1.1676]
[1644688519023,0.1701,2939.0,2938.8,0.01045935]
[1644688519467,0.02091869,2938.7,2938.4,0.00106627]
[1644688521070,0.01681869,2938.7,2938.4,0.00106627]
[1644688521273,0.71973956,2938.6,2938.4,0.00106627]
[1644688522972,0.1701,2938.5,2938.4,0.00106627]
[1644688524420,3.54600075,2938.5,2938.4,0.00106627]
[1644688524619,3.56487124,2938.5,2938.4,0.00106627]
[1644688525020,0.88983956,2938.6,2938.4,0.00106627]
[1644688525825,3.39188632,2938.5,2938.4,0.00106627]
[1644688526025,0.88983956,2938.6,2938.4,0.00106627]
[1644688526226,3.38260079,2938.5,2938.4,0.01152635]
[1644688526426,7.1,2938.4,2937.5,0.25]
[1644688526630,4.17581842,2938.3,2937.3,0.04185577]
[1644688527166,7.1,2938.4,2937.1,7.78]
[1644688527367,7.1,2938.4,2937.1,7.48]
[1644688527772,0.67289506,2937.6,2937.1,7.48]
[1644688527971,1.1882,2938.3,2937.1,7.48]
[1644688528372,1.1882,2938.3,2937.1,8.08]
[1644688528772,1.1882,2938.3,2937.6,0.0104613]
[1644688529072,0.76628243,2938.2,2937.6,0.0104613]
[1644688529672,0.76628243,2938.2,2937.4,0.85108]
[1644688529873,0.76628243,2938.2,2937.8,0.01046105]
[1644688530726,0.76628243,2938.2,2937.4,0.85108]
[1644688531125,0.76628243,2938.2,2937.9,0.01046089]
[1644688531927,0.76628243,2938.2,2937.3,0.1701]
[1644688532325,0.76628243,2938.2,2937.9,0.01046081]
[1644688532525,1.3583,2938.3,2937.9,0.01046081]
[1644688533127,0.1701,2938.3,2937.7,0.791]
[1644688533326,0.1701,2938.3,2937.7,1.091]
[1644688533526,0.1701,2938.3,2938.0,0.00984111]
[1644688533726,0.1701,2938.3,2938.0,0.01076896]
[1644688534375,0.1701,2938.3,2938.0,0.00092785]
[1644688534776,0.1701,2938.3,2938.0,0.01076888]
[1644688535681,0.1701,2938.3,2938.0,0.00092785]
[1644688535883,0.1701,2938.3,2938.1,0.491]
[1644688536085,0.1701,2938.3,2938.1,0.6611]
[1644688537086,0.1701,2938.3,2938.1,0.67094095]
[1644688537482,0.1701,2938.3,2938.1,1.97094095]
[1644688537684,0.1701,2938.3,2938.1,2.27094095]
[1644688538164,0.1701,2938.3,2938.1,0.6611]
[1644688538453,0.1701,2938.3,2938.1,0.67098254]
[1644688538652,0.1701,2938.3,2938.1,1.52185254]
[1644688538853,0.1701,2938.3,2938.2,0.00115964]
[1644688539053,0.1701,2938.3,2938.2,0.49215964]
[1644688545729,0.02669476,2938.7,2938.2,0.49215964]
[1644688545932,0.02669476,2938.7,2938.2,0.00115964]
[1644688545933,1.44841012,2938.6,2938.2,0.00115964]
[1644688546739,1.44841012,2938.6,2938.3,0.00987799]
[1644688547533,1.44841012,2938.6,2938.2,0.00115964]
[1644688547730,0.01681869,2938.7,2938.2,0.00115964]
[1644688547932,0.0266951,2938.7,2938.3,0.00987807]
[1644688548332,1.448388,2938.6,2938.3,0.00987807]
[1644688548936,0.0266951,2938.7,2938.4,0.491]
[1644688548937,0.01681869,2938.7,2938.4,0.491]
[1644688549136,0.02669504,2938.7,2938.5,0.491]
[1644688549583,0.02669504,2938.7,2938.5,0.6611]
[1644688549982,0.01681869,2938.7,2938.5,0.6611]
[1644688550184,0.01681869,2938.7,2938.5,1.6611]
[1644688550382,0.02569971,2938.7,2938.5,0.6611]
[1644688550580,0.02569971,2938.7,2938.5,1.6611]
[1644688551185,0.01582309,2938.7,2938.5,1.6611]
[1644688551385,0.02569971,2938.7,2938.6,3.37210238]
[1644688551585,0.02569971,2938.7,2938.6,4.16310238]
[1644688551785,0.02569971,2938.7,2938.6,5.46310238]
[1644688552085,0.02569971,2938.7,2938.6,5.41775989]
[1644688552286,0.02569971,2938.7,2938.6,2.091]
[1644688552486,0.01582309,2938.7,2938.6,2.091]
[1644688552689,0.01582309,2938.7,2938.6,0.491]
[1644688552885,0.01582309,2938.7,2938.6,0.791]
[1644688553730,0.01582309,2938.7,2938.6,0.79206588]
[1644688555236,0.01582309,2938.7,2938.6,0.49206588]
[1644688555632,0.01582309,2938.7,2938.6,0.00106588]
[1644688560278,0.01582309,2938.7,2938.1,0.13085902]
[1644688560477,0.01582309,2938.7,2938.1,0.62185902]
[1644688561337,1.44837034,2938.6,2937.7,1.6408]
[1644688561532,1.44837034,2938.6,2937.7,1.1498]
[1644688561931,0.77503217,2938.3,2937.7,1.1498]
[1644688562131,0.77503217,2938.3,2937.6,3.4506]
[1644688562332,0.77503217,2938.3,2938.0,0.00420072]
[1644688562736,1.2282,2938.6,2938.0,0.00030416]
[1644688562934,1.44843327,2938.5,2938.0,0.00030416]
[1644688563333,1.44843327,2938.5,2937.6,0.1701]
[1644688563535,1.44843327,2938.5,2937.5,0.1701]
[1644688563740,0.6564803,2938.0,2937.5,0.1701]
[1644688563934,4.4984,2938.6,2938.2,0.00097411]
[1644688564140,0.01582309,2938.7,2938.5,6.142]
[1644688564373,5.17696443,2940.1,2938.6,1.1824728]
[1644688564374,0.64541363,2939.9,2938.6,1.1824728]
[1644688564573,0.24626443,2940.1,2938.9,6.142]
[1644688564574,0.89167806,2940.1,2938.9,6.142]
[1644688564773,0.24626443,2940.1,2939.0,1.661]
[1644688565072,1.12930766,2940.1,2939.0,2.13309129]
[1644688566075,1.12930766,2940.1,2939.2,0.85052]
[1644688566276,1.12930766,2940.1,2939.3,4.16329357]
[1644688566678,1.12930766,2940.1,2939.4,1.0]
[1644688566876,1.12930766,2940.1,2939.5,3.87129865]
[1644688567078,1.12930766,2940.1,2939.6,0.85042]
[1644688567378,0.0104571,2939.8,2939.6,1.64142]
[1644688568226,0.24626443,2940.1,2939.6,1.64142]
[1644688568426,0.0104571,2939.8,2939.6,1.64142]
[1644688568825,0.0104571,2939.8,2939.6,2.64142]
[1644688569227,3.2506,2940.8,2939.6,6.00228776]
[1644688569426,3.2506,2940.8,2939.6,6.13967581]
[1644688569427,0.84093925,2940.4,2939.6,6.13967581]
[1644688569626,0.0104571,2939.8,2939.6,2.64142]
[1644688570227,0.0104571,2939.8,2939.6,6.00775949]
[1644688570425,0.17,2940.7,2939.7,3.36148429]
[1644688570631,13.26,2941.4,2939.7,10.40578429]
[1644688570632,0.0104571,2939.8,2939.7,10.40578429]
[1644688570833,0.04182214,2940.3,2939.8,0.491]
[1644688571032,0.04182214,2940.3,2940.0,0.85014]
[1644688571232,0.04182214,2940.3,2940.1,3.93247634]
[1644688571436,0.04182214,2940.3,2940.1,0.491]
[1644688571634,0.72923739,2940.7,2940.1,0.491]
[1644688572476,0.72923739,2940.7,2940.2,1.70039]
[1644688572676,0.72923739,2940.7,2940.3,0.491]
[1644688573878,0.72923739,2940.7,2940.4,0.85019]
[1644688574078,0.27806446,2941.2,2940.4,1.34119]
[1644688574279,0.10806446,2941.2,2940.4,0.491]
[1644688575479,0.80922626,2940.8,2940.4,0.491]
[1644688575732,0.80922626,2940.8,2940.5,0.85019]
[1644688576731,0.20865407,2940.4,2940.2,1.70039]
[1644688577031,0.20865407,2940.4,2940.3,0.491]
[1644688577835,0.20865407,2940.4,2940.0,0.661]
[1644688578936,0.20865407,2940.4,2940.0,1.51133]
[1644688579375,0.82927926,2940.3,2940.0,1.51133]
[1644688579576,0.82927926,2940.3,2940.0,1.34133]
[1644688580379,0.83972947,2940.3,2940.0,1.34133]
[1644688580785,0.83972947,2940.3,2939.4,1.70081]
[1644688580786,3.54643349,2940.2,2939.4,1.70081]
[1644688580982,0.86197216,2939.6,2939.2,0.491]
[1644688581187,0.86197216,2939.6,2939.0,1.02061]
[1644688581388,0.86197216,2939.6,2939.0,0.85061]
[1644688581983,0.01045077,2939.9,2939.0,0.85061]
[1644688582483,3.5,2940.2,2938.9,0.491]
[1644688582484,0.17,2940.1,2938.9,0.491]
[1644688582785,0.00985883,2939.9,2938.9,0.491]
[1644688583225,0.88912296,2939.3,2938.8,0.00986252]
[1644688583826,0.88912296,2939.3,2938.7,0.1701]
[1644688584025,0.88912296,2939.3,2938.8,0.00986174]
[1644688584930,0.88912296,2939.3,2938.7,0.1701]
[1644688584931,0.1701,2939.6,2938.7,0.1701]
[1644688585130,0.1701,2939.8,2938.7,0.1701]
[1644688585331,1.44800538,2939.7,2938.8,0.86053174]
[1644688585531,1.16295806,2939.9,2938.8,1.65153174]
[1644688585731,0.00985806,2939.9,2938.8,1.95153174]
[1644688585930,0.63537609,2939.8,2938.8,1.10086174]
[1644688586130,0.63537609,2939.8,2938.9,0.1701]
[1644688587378,0.63537609,2939.8,2939.1,1.701]
[1644688587577,0.63537609,2939.8,2939.2,0.491]
[1644688588578,3.683,2940.2,2939.2,0.491]
[1644688588777,0.0098981,2939.9,2939.2,0.491]
[1644688588982,0.0098981,2939.9,2939.2,0.791]
[1644688589179,0.0098981,2939.9,2939.4,0.85049]
[1644688589378,0.0098981,2939.9,2939.5,0.491]
[1644688589581,0.0098981,2939.9,2939.5,0.661]
[1644688589780,0.98102983,2940.4,2939.6,1.70072]